bitfinex-derivatives/quotes_SOLF0:USTF0_20250312
["timestamp","ask_amount","ask_price","bid_price","bid_amount"]
[1741741942611,192.0,125.82,125.72,0.05917694]
[1741741942816,34.837,125.82,125.74,26.56803952]
[1741741943017,34.837,125.82,125.74,57.16803952]
[1741741943214,34.837,125.82,125.77,0.0613851]
[1741741943512,26.56803952,125.8,125.7,26.56803952]
[1741741943709,7.955,125.75,125.68,273.44673952]
[1741741943913,30.6,125.75,125.68,265.48803952]
[1741741944218,40.6089,125.78,125.71,7.9568]
[1741741944520,0.05775383,125.76,125.73,0.05788354]
[1741741944715,7.9547,125.75,125.73,0.05788354]
[1741741944923,0.05775383,125.76,125.73,0.05788354]
[1741741945524,30.63775383,125.76,125.69,30.58]
[1741741946016,30.63775383,125.76,125.68,265.48803952]
[1741741946318,30.58,125.76,125.68,265.48803952]
[1741741946713,0.05248916,125.73,125.71,0.05774305]
[1741741946918,30.58,125.72,125.64,26.56803952]
[1741741947216,30.58,125.72,125.66,26.56803952]
[1741741947420,38.5353,125.74,125.68,7.9589]
[1741741947621,30.58,125.74,125.66,26.56803952]
[1741741947823,30.58,125.74,125.66,57.14803952]
[1741741948121,0.05507821,125.71,125.69,0.05381149]
[1741741949017,0.05507821,125.71,125.7,26.56803952]
[1741741949223,0.05507821,125.71,125.7,34.52563952]
[1741741949818,7.9528,125.78,125.73,7.9556]
[1741741950021,2.1393,125.79,125.72,57.14803952]
[1741741950219,2.1393,125.79,125.74,26.56803952]
[1741741950419,2.1295,125.81,125.74,26.56803952]
[1741741950619,2.1295,125.81,125.76,26.56803952]
[1741741950821,2.1295,125.81,125.76,57.14803952]
[1741741951023,0.0580295,125.8,125.77,0.05807932]
[1741741951323,0.0580295,125.8,125.78,26.56803952]
[1741741951627,0.0580295,125.8,125.77,0.05807932]
[1741741952022,8.0093295,125.8,125.77,0.05807932]
[1741741952223,0.0580295,125.8,125.77,0.05807932]
[1741741953126,0.0580295,125.8,125.79,7.9519]
[1741741953324,0.0580295,125.8,125.77,0.05807932]
[1741741954124,0.0580295,125.8,125.79,7.9519]
[1741741954919,0.0580295,125.8,125.78,7.9525]
[1741741955121,0.0580295,125.8,125.77,0.05807932]
[1741741955523,0.0580295,125.8,125.78,7.9521]
[1741741955820,0.0580295,125.8,125.77,0.05807932]
[1741741956225,0.0580295,125.8,125.78,7.952]
[1741741956426,0.0580295,125.8,125.77,0.05807932]
[1741741956729,0.0580295,125.8,125.78,7.9522]
[1741741957024,0.0580295,125.8,125.77,0.05807932]
[1741741957620,2.077,125.85,125.78,26.56803952]
[1741741957825,9.9689,125.87,125.83,7.9489]
[1741741958033,2.0215,125.87,125.81,26.56803952]
[1741741958229,2.0215,125.87,125.82,7.9499]
[1741741958427,2.0215,125.87,125.81,26.56803952]
[1741741958633,2.0215,125.87,125.79,57.26803952]
[1741741958930,0.05273219,125.85,125.82,0.05966179]
[1741741959133,30.83273219,125.85,125.77,238.62]
[1741741959536,7.949,125.84,125.8,7.9513]
[1741741959827,7.949,125.84,125.77,238.62]
[1741741960030,30.78,125.85,125.77,238.62]
[1741741960331,0.05991859,125.82,125.8,0.05775924]
[1741741960529,30.87991859,125.82,125.72,26.56803952]
[1741741960832,30.82,125.82,125.72,26.56803952]
[1741741961331,57.38803952,125.82,125.71,265.14803952]
[1741741961534,26.56803952,125.8,125.71,238.58]
[1741741961831,7.9543,125.76,125.75,0.05705483]
[1741741962141,30.86,125.76,125.71,238.58]
[1741741962931,7.9549,125.75,125.7,7.9572]
[1741741963131,30.86,125.76,125.68,26.56803952]
[1741741963325,30.86,125.76,125.72,0.05351868]
[1741741963326,0.06067949,125.75,125.72,0.05351868]
[1741741963632,7.9557,125.73,125.68,7.9587]
[1741741963836,30.84,125.72,125.66,26.56803952]
[1741741964134,30.84,125.71,125.68,7.9585]
[1741741964338,30.84,125.71,125.64,26.56803952]
[1741741964642,0.05158216,125.69,125.66,0.05699734]
[1741741966639,0.05158216,125.69,125.68,7.9589]
[1741741967338,0.05158216,125.69,125.66,0.05699734]
[1741741967930,0.05158216,125.69,125.66,8.01669734]
[1741741968234,0.05158216,125.69,125.66,0.05699734]
[1741741968631,0.05158216,125.69,125.66,8.01669734]
[1741741969034,30.84,125.68,125.67,7.9595]
[1741741969235,0.05158216,125.69,125.66,0.05699734]
[1741741969541,0.05158216,125.69,125.68,7.9589]
[1741741969838,0.05158216,125.69,125.66,0.05699734]
[1741741970136,0.05158216,125.69,125.66,8.01669734]
[1741741970441,0.05158216,125.69,125.66,0.05699734]
[1741741972143,8.01008216,125.69,125.66,0.05699734]
[1741741972335,0.05158216,125.69,125.66,0.05699734]
[1741741972536,0.05158216,125.69,125.67,7.959]
[1741741972734,0.05158216,125.69,125.66,0.05699734]
[1741741973349,30.88,125.68,125.66,0.05699734]
[1741741973949,32.9268,125.68,125.6,26.56803952]
[1741741974149,2.0857,125.67,125.6,26.56803952]
[1741741974345,7.9602,125.66,125.62,7.9626]
[1741741974848,30.86,125.65,125.58,26.56803952]
[1741741975040,30.91444532,125.65,125.63,0.05670285]
[1741741975242,30.91444532,125.65,125.58,26.56803952]
[1741741975945,30.91444532,125.65,125.56,408.77658533]
[1741741976145,7.9631,125.62,125.54,26.56803952]
[1741741976345,35.1947,125.61,125.59,0.05220818]
[1741741976752,35.24527686,125.61,125.54,26.56803952]
[1741741977049,4.38527686,125.61,125.55,30.88]
[1741741977253,4.38527686,125.61,125.55,57.44803952]
[1741741977547,4.3347,125.61,125.6,7.964]
[1741741978757,2.1713,125.61,125.6,7.964]
[1741741979156,0.06011716,125.62,125.61,7.9633]
[1741741981257,0.06011716,125.62,125.59,0.0594414]
[1741741981660,0.06011716,125.62,125.55,26.56803952]
[1741741982159,0.06011716,125.62,125.61,7.9633]
[1741741984266,0.06011716,125.62,125.6,0.05239448]
[1741741985461,0.06011716,125.62,125.61,7.9633]
[1741741985764,0.06011716,125.62,125.55,26.56803952]
[1741741985960,30.9,125.63,125.55,26.56803952]
[1741741986362,38.8622,125.63,125.59,7.964]
[1741741986558,30.9,125.63,125.55,26.56803952]
[1741741986762,30.9,125.63,125.57,26.56803952]
[1741741987061,32.8863,125.65,125.58,0.05991188]
[1741741987267,0.05728771,125.61,125.59,26.56803952]
[1741741987765,0.05728771,125.61,125.6,7.964]
[1741741994970,0.05728771,125.61,125.59,0.05539829]
[1741741995176,0.05728771,125.61,125.6,7.964]
[1741741999082,0.05728771,125.61,125.59,0.05539829]
[1741741999268,8.02068771,125.61,125.59,0.05539829]
[1741741999671,2.14458771,125.61,125.54,30.78]
[1741741999871,10.051,125.61,125.54,57.34803952]
[1741742000076,2.0873,125.61,125.54,57.34803952]
[1741742000777,0.05830667,125.59,125.58,7.9648]
[1741742002676,0.05830667,125.59,125.56,0.05860083]
[1741742003382,0.05830667,125.59,125.58,34.53323952]
[1741742005780,0.05830667,125.59,125.58,7.9652]
[1741742011187,30.65830667,125.59,125.56,0.05860083]
[1741742011682,7.9659,125.57,125.56,0.05860083]
[1741742012386,2.0115,125.58,125.56,0.05860083]
[1741742013588,0.05830667,125.59,125.56,0.05860083]
[1741742014289,0.05830667,125.59,125.57,7.9655]
[1741742014587,0.05830667,125.59,125.56,0.05860083]
[1741742014588,30.6,125.58,125.56,0.05860083]
[1741742014787,38.5657,125.58,125.56,0.05860083]
[1741742015182,30.6,125.58,125.56,0.05860083]
[1741742015383,7.9659,125.57,125.56,0.05860083]
[1741742015583,30.6,125.58,125.5,238.7]
[1741742015882,30.6,125.58,125.49,87.99754593]
[1741742016078,7.9661,125.57,125.52,7.9687]
[1741742016389,4.0459,125.57,125.49,87.99754593]
[1741742016687,0.05995918,125.54,125.53,7.9684]
[1741742022383,30.6,125.58,125.53,16.65012688]
[1741742022686,30.6,125.58,125.57,7.9659]
[1741742022881,38.5653,125.58,125.55,16.65012688]
[1741742023086,38.5653,125.58,125.54,7.9674]
[1741742023481,30.6,125.58,125.53,16.65012688]
[1741742023681,0.0531597,125.57,125.55,0.0601422]
[1741742024093,0.0531597,125.57,125.56,7.9665]
[1741742027999,0.0531597,125.57,125.55,0.0601422]
[1741742030696,0.0531597,125.57,125.55,8.0269422]
[1741742031291,0.0531597,125.57,125.56,7.9665]
[1741742039102,0.0531597,125.57,125.55,8.0270422]
[1741742039296,0.0531597,125.57,125.55,0.0601422]
[1741742040500,0.0531597,125.57,125.56,7.9665]
[1741742042007,0.0531597,125.57,125.55,8.0269422]
[1741742042303,0.0531597,125.57,125.55,0.0601422]
[1741742042500,0.0531597,125.57,125.56,7.9665]
[1741742045615,0.0531597,125.57,125.55,8.0271422]
[1741742046207,7.9665,125.56,125.55,0.0601422]
[1741742046408,0.0531597,125.57,125.55,0.0601422]
[1741742047308,0.0531597,125.57,125.55,8.0272422]
[1741742047508,0.0531597,125.57,125.55,0.0601422]
[1741742047808,0.0531597,125.57,125.55,16.71026908]
[1741742048111,0.0531597,125.57,125.56,7.9665]
[1741742048807,2.1258,125.64,125.56,30.6]
[1741742049009,32.7258,125.64,125.58,16.65012688]
[1741742049402,10.0876,125.64,125.58,16.65012688]
[1741742049607,10.0876,125.64,125.6,7.9634]
[1741742049803,10.0876,125.64,125.58,16.65012688]
[1741742050108,0.05926095,125.63,125.61,0.05522894]
[1741742050412,36.63533553,125.65,125.59,30.6]
[1741742050614,0.05354078,125.63,125.61,0.05111191]
[1741742050911,0.05354078,125.63,125.61,8.01421191]
[1741742051520,0.05354078,125.63,125.61,0.05111191]
[1741742052111,7.9627,125.62,125.61,0.05111191]
[1741742052305,0.05354078,125.63,125.61,0.05111191]
[1741742052511,0.05354078,125.63,125.61,8.01441191]
[1741742053114,0.05354078,125.63,125.62,7.9627]
[1741742053411,0.05354078,125.63,125.61,0.05111191]
[1741742055313,0.05354078,125.63,125.62,7.9627]
[1741742055717,0.05354078,125.63,125.61,0.05111191]
[1741742056417,7.9627,125.62,125.61,0.05111191]
[1741742060314,30.65354078,125.63,125.56,16.65012688]
[1741742060315,30.65354078,125.63,125.57,7.9655]
[1741742060520,7.9644,125.6,125.54,20.89062688]
[1741742060917,7.9644,125.6,125.56,7.9661]
[1741742061218,7.9636,125.61,125.54,20.89062688]
[1741742061418,30.6,125.63,125.54,20.89062688]
[1741742061719,0.06035135,125.59,125.57,7.9655]
[1741742062108,0.06035135,125.59,125.57,8.02173759]
[1741742062622,0.06035135,125.59,125.58,7.9652]
[1741742068724,0.06035135,125.59,125.57,8.02193759]
[1741742068921,0.06035135,125.59,125.57,0.05623759]
[1741742069425,0.06035135,125.59,125.58,7.9652]
[1741742072525,0.06035135,125.59,125.58,24.61532688]
[1741742074626,0.06035135,125.59,125.58,7.9652]
[1741742078124,0.06035135,125.59,125.57,8.02183759]
[1741742078330,0.06035135,125.59,125.57,0.05623759]
[1741742078626,0.06035135,125.59,125.58,7.9652]
[1741742078831,0.06035135,125.59,125.58,18.61695784]
[1741742079728,6.3054,125.65,125.58,41.23175784]
[1741742080032,4.1242,125.65,125.61,10.65175784]
[1741742080633,49.19155784,125.67,125.61,10.65175784]
[1741742080933,0.05529777,125.65,125.63,0.05903733]
[1741742081333,8.01609777,125.65,125.63,0.05903733]
[1741742082638,8.01639777,125.65,125.63,0.05903733]
[1741742084139,0.05529777,125.65,125.63,8.02093733]
[1741742084436,0.05529777,125.65,125.63,0.05903733]
[1741742084832,7.9614,125.64,125.63,0.05903733]
[1741742086539,10.70705561,125.65,125.63,0.05903733]
[1741742087238,7.9614,125.64,125.63,0.05903733]
[1741742089039,10.70705561,125.65,125.63,0.05903733]
[1741742089240,18.66815561,125.65,125.63,0.05903733]
[1741742089737,10.70705561,125.65,125.63,8.02093733]
[1741742090038,10.70705561,125.65,125.63,0.05903733]
[1741742090241,7.9614,125.64,125.63,0.05903733]
[1741742090440,10.70705561,125.65,125.63,0.05903733]
[1741742091031,18.66815561,125.65,125.63,0.05903733]
[1741742091434,10.70705561,125.65,125.63,8.02073733]
[1741742092134,0.05529777,125.65,125.63,8.02073733]
[1741742092344,0.05529777,125.65,125.64,7.9614]
[1741742093747,0.05529777,125.65,125.63,8.02093733]
[1741742094040,0.05529777,125.65,125.63,0.05903733]
[1741742094246,0.05529777,125.65,125.63,10.71079517]
[1741742094445,0.05529777,125.65,125.63,41.29079517]
[1741742094644,0.05529777,125.65,125.64,7.9614]
[1741742094846,12.79455784,125.71,125.63,41.29079517]
[1741742095144,7.9602,125.66,125.63,49.19355784]
[1741742095346,7.9602,125.66,125.63,7.9618]
[1741742095543,7.9602,125.66,125.61,14.63405784]
[1741742095848,41.23175784,125.65,125.59,10.65175784]
[1741742096043,43.43050872,125.65,125.62,0.05204865]
[1741742096239,7.9618,125.64,125.62,0.05204865]
[1741742096743,43.43050872,125.65,125.62,0.05204865]
[1741742097653,7.9614,125.64,125.62,0.05204865]
[1741742097846,43.43050872,125.65,125.62,0.05204865]
[1741742099149,7.9621,125.63,125.62,0.05204865]
[1741742100051,7.9614,125.64,125.62,0.05204865]
[1741742100250,43.43050872,125.65,125.62,0.05204865]
[1741742100754,7.9618,125.64,125.62,0.05204865]
[1741742100954,43.43050872,125.65,125.62,0.05204865]
[1741742101156,10.65175784,125.63,125.57,10.65175784]
[1741742101355,7.9637,125.61,125.57,18.61725784]
[1741742101762,7.9643,125.6,125.56,7.9661]
[1741742102057,10.65175784,125.61,125.55,41.23175784]
[1741742102246,10.65175784,125.61,125.58,7.9647]
[1741742102446,0.06043182,125.59,125.57,10.70383254]
[1741742102657,30.58,125.58,125.57,0.0520747]
[1741742102856,30.58,125.58,125.52,131.9963189]
[1741742103159,30.58,125.58,125.51,87.99754593]
[1741742103160,10.65175784,125.55,125.51,87.99754593]
[1741742103375,49.19895784,125.55,125.51,95.96694593]
[1741742103755,41.23175784,125.55,125.51,87.99754593]
[1741742103954,0.05039882,125.54,125.52,0.05633569]
[1741742105159,0.05039882,125.54,125.52,8.02523569]
[1741742105656,0.05039882,125.54,125.52,0.05633569]
[1741742106358,0.05039882,125.54,125.53,7.9684]
[1741742106754,10.65175784,125.59,125.55,7.9665]
[1741742106955,10.65175784,125.57,125.53,10.65175784]
[1741742107358,10.65175784,125.57,125.51,41.23175784]
[1741742107557,10.65175784,125.55,125.5,10.65175784]
[1741742107759,41.23175784,125.55,125.49,18.62225784]
[1741742107958,0.05290719,125.54,125.51,0.05565341]
[1741742108155,0.05290719,125.54,125.51,10.70741125]
[1741742108356,0.05290719,125.54,125.53,7.9684]
[1741742108660,0.05290719,125.54,125.53,18.62015784]
[1741742109555,0.05290719,125.54,125.51,10.70741125]
[1741742110059,0.05290719,125.54,125.53,18.62015784]
[1741742111861,0.05290719,125.54,125.52,7.9686]
[1741742112154,0.05290719,125.54,125.51,10.70741125]
[1741742112357,0.05290719,125.54,125.53,7.9684]
[1741742112762,0.05290719,125.54,125.53,18.62015784]
[1741742112956,0.05290719,125.54,125.51,10.70741125]
[1741742113157,0.05290719,125.54,125.51,8.02505341]
[1741742113362,0.05290719,125.54,125.51,0.05565341]
[1741742113757,4.19950719,125.54,125.51,0.05565341]
[1741742113955,10.65175784,125.53,125.51,0.05565341]
[1741742114459,18.62045784,125.53,125.51,0.05565341]
[1741742115065,6.19820719,125.54,125.51,0.05565341]
[1741742115856,0.05290719,125.54,125.51,0.05565341]
[1741742116063,0.05290719,125.54,125.52,7.9684]
[1741742116260,0.05290719,125.54,125.52,10.65175784]
[1741742116757,0.05290719,125.54,125.53,7.9684]
[1741742118767,0.05290719,125.54,125.52,18.62055784]
[1741742118966,0.05290719,125.54,125.52,10.65175784]
[1741742119769,0.05290719,125.54,125.53,7.9684]
[1741742121180,7.9638,125.61,125.57,7.9658]
[1741742121479,7.9638,125.61,125.57,18.61755784]
[1741742121982,12.70155784,125.62,125.57,10.65175784]
[1741742122179,2.0498,125.62,125.59,10.65175784]
[1741742122479,0.06026789,125.61,125.59,10.65175784]
[1741742122678,8.02396789,125.61,125.59,10.65175784]
[1741742122877,0.06026789,125.61,125.58,0.05144591]
[1741742124283,10.65175784,125.6,125.58,0.05144591]
[1741742124578,41.23175784,125.6,125.53,10.65175784]
[1741742124774,10.65175784,125.58,125.53,10.65175784]
[1741742124980,7.9673,125.55,125.53,10.65175784]
[1741742125180,10.65175784,125.58,125.53,10.65175784]
[1741742125377,41.23175784,125.6,125.55,10.65175784]
[1741742125572,7.9653,125.58,125.56,0.05198026]
[1741742125782,10.65175784,125.58,125.56,0.05198026]
[1741742126082,7.9659,125.57,125.56,0.05198026]
[1741742126783,0.05483255,125.59,125.56,0.05198026]
[1741742127074,0.05483255,125.59,125.57,7.9655]
[1741742127280,0.05483255,125.59,125.56,0.05198026]
[1741742127682,0.05483255,125.59,125.58,7.9652]
[1741742127880,3.255e-05,125.59,125.58,38.5452]
[1741742129481,4.1005,125.68,125.58,21.04005438]
[1741742129688,4.1005,125.68,125.61,16.65335438]
[1741742129884,4.1005,125.68,125.62,30.58]
[1741742130084,20.75385438,125.68,125.59,16.65335438]
[1741742130285,16.65335438,125.66,125.59,30.58]
[1741742130477,0.05095682,125.65,125.62,0.05649531]
[1741742130784,16.65335438,125.64,125.56,30.58]
[1741742130984,18.74745438,125.64,125.56,30.58]
[1741742131185,7.9623,125.63,125.58,7.9651]
[1741742131381,2.0941,125.64,125.56,30.58]
[1741742131587,10.0558,125.64,125.59,7.9642]
[1741742131788,2.0941,125.64,125.57,16.65335438]
[1741742131985,0.05503597,125.63,125.6,0.05997106]
[1741742132187,7.9631,125.62,125.6,0.05997106]
[1741742132485,0.05503597,125.63,125.6,0.05997106]
[1741742133185,7.9633,125.61,125.6,0.05997106]
[1741742133490,0.05503597,125.63,125.6,0.05997106]
[1741742133687,7.9629,125.62,125.6,0.05997106]
[1741742133983,0.05503597,125.63,125.6,0.05997106]
[1741742134184,30.63503597,125.63,125.6,0.05997106]
[1741742134384,7.9633,125.61,125.6,0.05997106]
[1741742134591,16.65335438,125.62,125.54,30.58]
[1741742134984,16.65335438,125.62,125.55,7.9667]
[1741742135789,7.9649,125.59,125.57,0.05316506]
[1741742136085,0.05209537,125.6,125.57,0.05316506]
[1741742136488,8.01619537,125.6,125.57,0.05316506]
[1741742136986,0.05209537,125.6,125.57,0.05316506]
[1741742137587,0.05209537,125.6,125.57,8.01846506]
[1741742137989,0.05209537,125.6,125.57,0.05316506]
[1741742138292,0.05209537,125.6,125.58,7.9648]
[1741742138692,0.05209537,125.6,125.57,0.05316506]
[1741742139385,0.05209537,125.6,125.57,30.63316506]
[1741742140083,0.05209537,125.6,125.58,7.9652]
[1741742140288,0.05209537,125.6,125.57,30.63316506]
[1741742141489,0.05209537,125.6,125.57,0.05316506]
[1741742141994,7.9652,125.59,125.57,0.05316506]
[1741742142195,0.05209537,125.6,125.57,0.05316506]
[1741742142392,16.70544975,125.6,125.57,0.05316506]
[1741742142691,16.70544975,125.6,125.51,49.37065438]
[1741742142895,2.0039,125.59,125.51,49.37065438]
[1741742143092,30.58,125.58,125.51,18.79065438]
[1741742143285,47.23335438,125.58,125.5,20.9272263]
[1741742143491,2.1053,125.57,125.5,20.9272263]
[1741742143792,0.05662918,125.55,125.52,0.05962851]
[1741742144996,0.05662918,125.55,125.53,7.968]
[1741742145197,0.05662918,125.55,125.52,30.63962851]
[1741742145388,0.05662918,125.55,125.54,7.9678]
[1741742146193,16.65335438,125.62,125.53,16.65335438]
[1741742146394,6.3156,125.63,125.55,16.65335438]
[1741742146591,6.3156,125.63,125.56,30.58]
[1741742146894,6.3156,125.63,125.6,7.9638]
[1741742147490,6.37310871,125.63,125.6,8.02115956]
[1741742147890,4.26230871,125.63,125.6,0.05735956]
[1741742148194,0.05750871,125.63,125.6,0.05735956]
[1741742149301,0.05750871,125.63,125.6,8.02095956]
[1741742149690,0.05750871,125.63,125.6,0.05735956]
[1741742151003,0.05750871,125.63,125.61,7.9629]
[1741742151806,0.05750871,125.63,125.6,0.05735956]
[1741742152205,0.05750871,125.63,125.61,7.9627]
[1741742152603,0.05750871,125.63,125.6,0.05735956]
[1741742153298,0.05750871,125.63,125.62,7.9627]
[1741742154698,238.92,125.71,125.62,30.56]
[1741742154905,7.958,125.7,125.64,16.65335438]
[1741742155102,269.48,125.71,125.66,7.9601]
[1741742155502,269.48,125.71,125.64,16.65335438]
[1741742155703,0.05895266,125.7,125.67,0.05036111]
[1741742156308,7.9583,125.69,125.67,0.05036111]
[1741742156702,30.61895266,125.7,125.67,0.05036111]
[1741742157105,7.9586,125.69,125.67,0.05036111]
[1741742158203,30.61895266,125.7,125.67,0.05036111]
[1741742158597,7.9587,125.69,125.67,0.05036111]
[1741742158795,30.61895266,125.7,125.67,0.05036111]
[1741742159097,7.9583,125.69,125.67,0.05036111]
[1741742159506,30.61895266,125.7,125.67,0.05036111]
[1741742159708,47.27230704,125.7,125.6,4.291]
[1741742159903,16.65335438,125.68,125.6,30.56]
[1741742160207,16.65335438,125.66,125.57,16.65335438]
[1741742160397,30.56,125.65,125.57,47.21335438]
[1741742161006,0.0586146,125.62,125.6,0.05209272]
[1741742161507,8.0217146,125.62,125.6,0.05209272]
[1741742162408,0.0586146,125.62,125.6,0.05209272]
[1741742162604,7.9633,125.61,125.6,0.05209272]
[1741742162908,0.0586146,125.62,125.6,0.05209272]
[1741742163706,0.0586146,125.62,125.6,8.01599272]
[1741742164113,8.0214146,125.62,125.6,0.05209272]
[1741742164506,0.0586146,125.62,125.6,0.05209272]
[1741742164716,0.0586146,125.62,125.6,8.01599272]
[1741742165415,0.0586146,125.62,125.61,7.9633]
[1741742166305,2.1613,125.67,125.61,16.65335438]
[1741742166508,2.1613,125.67,125.65,7.9603]
[1741742166709,2.1613,125.67,125.62,30.56]
[1741742166913,2.1613,125.67,125.64,7.9609]
[1741742167515,2.21917373,125.67,125.64,8.01890533]
[1741742167716,10.17887373,125.67,125.64,8.01890533]
[1741742168014,2.21917373,125.67,125.64,0.05800533]
[1741742169015,10.17917373,125.67,125.64,0.05800533]
[1741742169416,2.21917373,125.67,125.64,0.05800533]
[1741742170117,10.17917373,125.67,125.64,0.05800533]
[1741742170611,2.21917373,125.67,125.64,0.05800533]
[1741742170817,7.9605,125.66,125.64,0.05800533]
[1741742171617,10.17897373,125.67,125.64,0.05800533]
[1741742171813,2.21917373,125.67,125.64,0.05800533]
[1741742172115,2.21917373,125.67,125.64,8.01910533]
[1741742172609,7.9608,125.65,125.64,0.05800533]
[1741742172814,47.21335438,125.66,125.57,16.65335438]
[1741742173014,16.65335438,125.64,125.56,30.56]
[1741742173217,7.9638,125.61,125.56,30.56]
[1741742173417,30.56,125.63,125.56,30.56]
[1741742173921,8.01978986,125.61,125.58,0.06047788]
[1741742174118,0.05588986,125.61,125.58,0.06047788]
[1741742174418,0.05588986,125.61,125.58,8.02547788]
[1741742175122,0.05588986,125.61,125.58,0.06047788]
[1741742175816,0.05588986,125.61,125.58,8.02547788]
[1741742176120,0.05588986,125.61,125.6,7.964]
[1741742176417,2.1613,125.67,125.59,47.21335438]
[1741742177115,7.9603,125.66,125.59,47.21335438]
[1741742177316,7.9603,125.66,125.62,7.9623]
[1741742177517,0.05746612,125.64,125.62,7.9623]
[1741742177714,0.05746612,125.64,125.61,0.05824804]
[1741742177917,0.05746612,125.64,125.63,7.9621]
[1741742178623,0.05746612,125.64,125.62,7.9624]
[1741742179014,0.05746612,125.64,125.61,0.05824804]
[1741742179617,2.15196612,125.64,125.61,0.05824804]
[1741742181519,2.15196612,125.64,125.62,7.9627]
[1741742181725,0.05746612,125.64,125.62,7.9627]
[1741742181920,0.05746612,125.64,125.63,7.9621]
[1741742183226,269.48,125.71,125.67,7.959]
[1741742183421,269.48,125.71,125.63,47.21335438]
[1741742183422,271.6624,125.71,125.63,47.21335438]
[1741742183918,7.9586,125.69,125.65,7.9605]
[1741742184323,30.56,125.7,125.68,7.9588]
[1741742184521,30.56,125.7,125.66,0.0561973]
[1741742184719,30.61138615,125.7,125.66,0.0561973]
[1741742184928,30.61138615,125.7,125.67,7.9591]
[1741742185526,30.61138615,125.7,125.66,0.0561973]
[1741742186028,7.9611,125.65,125.61,7.9631]
[1741742186428,30.56,125.67,125.61,7.9631]
[1741742186625,7.9618,125.64,125.61,7.9631]
[1741742186825,4.1788,125.66,125.62,7.9624]
[1741742187026,12.1392,125.66,125.62,7.9624]
[1741742187226,0.05350298,125.65,125.63,0.05766105]
[1741742187526,0.05350298,125.65,125.64,7.9614]
[1741742188932,0.05350298,125.65,125.63,8.01956105]
[1741742189229,0.05350298,125.65,125.63,0.05766105]
[1741742190130,7.9614,125.64,125.63,0.05766105]
[1741742190527,0.05350298,125.65,125.63,0.05766105]
[1741742191323,7.9614,125.64,125.63,0.05766105]
[1741742191524,0.05350298,125.65,125.63,0.05766105]
[1741742192533,8.01470298,125.65,125.63,0.05766105]
[1741742192931,0.05350298,125.65,125.63,0.05766105]
[1741742193233,0.05350298,125.65,125.64,7.9614]
[1741742193621,0.05350298,125.65,125.63,8.01946105]
[1741742194327,0.05350298,125.65,125.63,0.05766105]
[1741742194830,8.01470298,125.65,125.63,0.05766105]
[1741742195927,0.05350298,125.65,125.63,0.05766105]
[1741742196529,0.05350298,125.65,125.64,7.9614]
[1741742197830,0.05350298,125.65,125.63,0.05766105]
[1741742198833,8.01460298,125.65,125.63,0.05766105]
[1741742199331,0.05350298,125.65,125.63,0.05766105]
[1741742199937,7.9614,125.64,125.63,0.05766105]
[1741742200536,0.05350298,125.65,125.63,0.05766105]
[1741742203337,0.05350298,125.65,125.63,8.01936105]
[1741742203740,0.05350298,125.65,125.63,0.05766105]
[1741742205835,7.9614,125.64,125.63,0.05766105]
[1741742206139,30.61350298,125.65,125.57,59.1727334]
[1741742206334,47.19968829,125.65,125.57,32.576]
[1741742206540,7.9634,125.61,125.57,32.576]
[1741742206837,7.9634,125.61,125.56,18.81628829]
[1741742207032,30.56,125.62,125.55,141.04995933]
[1741742207233,16.63968829,125.63,125.55,141.04995933]
[1741742207234,16.63968829,125.59,125.55,141.04995933]
[1741742207635,7.9663,125.57,125.55,141.04995933]
[1741742207837,16.63968829,125.59,125.55,141.04995933]
[1741742208234,7.9665,125.56,125.55,141.04995933]
[1741742208640,7.9665,125.56,125.55,1.668e-05]
[1741742209134,26.6528005,125.57,125.54,0.06133778]
[1741742209339,38.5269,125.56,125.54,0.06133778]
[1741742210442,30.56,125.56,125.54,0.06133778]
[1741742211743,4.32562028,125.58,125.54,0.06133778]
[1741742211943,30.56,125.57,125.54,0.06133778]
[1741742212242,0.05422028,125.58,125.54,0.06133778]
[1741742213543,0.05422028,125.58,125.57,7.9659]
[1741742213737,0.05422028,125.58,125.54,0.06133778]
[1741742213934,0.05422028,125.58,125.55,7.9668]
[1741742214840,0.05422028,125.58,125.56,7.9665]
[1741742215039,0.05422028,125.58,125.54,0.06133778]
[1741742215643,0.05422028,125.58,125.57,7.9659]
[1741742218747,0.05422028,125.58,125.55,1.9928]
[1741742218748,0.05422028,125.58,125.56,7.9662]
[1741742219251,0.05422028,125.58,125.55,1.9928]
[1741742221044,0.05422028,125.58,125.57,7.9659]
[1741742221444,0.05422028,125.58,125.55,1.9928]